Cogmind - Beta 13 @@@ ROGUE MODE // 2024.04.28 @ 10:45:52 Player: Olafz Result: Destroyed by L-31 Rogue with Katana Performance ------------- Evolutions (2) 1000 Regions Visited (5) 1000 Robots Destroyed (35) 175 Value Destroyed (1116) 1116 Prototype IDs (3) 60 Alien Tech Used (0) 0 Bonus (239) 239 TOTAL SCORE: 3590 Bonus ------- Follower Combat Kills 39 Entered Garrisons 200 Cogmind --------- Core Integrity 0/550 Matter 153/300 Energy 62/100 System Corruption 6% Temperature Critical (665) Movement Core (700) Ox13 Location -8/Garrison Parts ------- > --- POWER (1) -------- (None) > --- PROPULSION (4) --- (None) > --- UTILITY (4) ------ High-capacity Storage Unit > --- WEAPON (2) ------- (None) > --- INVENTORY (20) --- Ion Engine Faulty Heavy Ion Engine Nuclear Core Nuclear Core Aluminum Leg Wheel Heat Sink Improved Heat Sink Medium Storage Unit Small Laser Heavy Particle Cannon Heavy Particle Cannon Peak State ------------ > --- POWER ------------ Nuclear Core > --- PROPULSION ------- Aluminum Leg Aluminum Leg Aluminum Leg Improved Aluminum Leg > --- UTILITY ---------- Improved Heat Sink High-capacity Storage Unit Improved Sensor Array Improved Signal Interpreter > --- WEAPON ----------- Shock Rifle Heavy Particle Cannon > --- INVENTORY -------- Ion Engine Heavy Ion Engine Nuclear Core Nuclear Core Nuclear Core Aluminum Leg Aluminum Leg Wheel Heat Sink Improved Heat Sink Medium Storage Unit Seismic Detector Particle Charger Small Laser Advanced Beam Cannon Heavy Particle Cannon Heavy Particle Cannon Autogun Autogun Grenade Launcher [Rating: 28] Favorites ----------- Power Nuclear Core Engine Ion Engine Power Core Nuclear Core Propulsion Aluminum Leg Leg Aluminum Leg Wheel Wheel Utility High-capacity Storage Unit Device Heat Sink Storage High-capacity Storage Unit Processor Improved Signal Interpreter Weapon Heavy Particle Cannon Energy Gun Small Laser Energy Cannon Heavy Particle Cannon Ballistic Gun Autogun Launcher Grenade Launcher Build | -11 -10 -10 -9 -8 -8 ------- Run | Yrd Mat Min Mat Mat Gar Slots Evolved 4 | . . . 2 2 . Power . | . . . . . . Propulsion 2 | . . . 1 1 . Utility 2 | . . . 1 1 . Weapon . | . . . . . . Parts Attached 63 | . 11 5 9 24 14 Power 5 | . 2 . 1 1 1 Engine . | . . . . . . Core 5 | . 2 . 1 1 1 Reactor . | . . . . . . Propulsion 25 | . 4 2 4 10 5 Treads . | . . . . . . Leg 23 | . 4 1 4 9 5 Wheel 2 | . . 1 . 1 . Hover . | . . . . . . Flight . | . . . . . . Utility 15 | . 2 1 2 8 2 Device 10 | . 1 . 2 5 2 Storage 2 | . 1 1 . . . Processor 3 | . . . . 3 . Hackware . | . . . . . . Protection . | . . . . . . Artifact . | . . . . . . Weapon 18 | . 3 2 2 5 6 Energy Gun 5 | . 3 1 . 1 . Energy Cannon 8 | . . . 2 3 3 Ballistic Gun 2 | . . . . . 2 Ballistic Cannon . | . . . . . . Launcher 3 | . . 1 . 1 1 Special Weapon . | . . . . . . Impact Weapon . | . . . . . . Slashing Weapon . | . . . . . . Piercing Weapon . | . . . . . . Special Melee Weapon . | . . . . . . Unidentified Prototypes 1 | . . . . . 1 Corrupted Parts 2 | . . . . 1 1 System Corruption 6 | . . . . 2 4 Parts Lost 34 | . 3 1 . 11 19 Power 2 | . . . . . 2 Propulsion 15 | . 1 . . 7 7 Utility 7 | . . . . 3 4 Weapon 10 | . 2 1 . 1 6 Highest Loss Streak 14 | . 3 1 . 6 14 To Critical Strikes . | . . . . . . Average Slot Usage (%) 94 | . 84 100 98 94 90 Core 10 | . 7 14 11 8 8 Leg 30 | . 28 23 32 32 34 Wheel 1 | . . 4 . 1 . Device 14 | . . 14 21 19 12 Storage 11 | . 14 14 11 9 9 Processor 2 | . . . . 5 9 Energy Gun 6 | . 15 14 . 4 3 Energy Cannon 8 | . . . 20 11 3 Ballistic Gun 3 | . 10 . . . 9 Launcher 3 | . . 14 . 2 . Naked Turns . | . . . . . . Heaviest Build 64 | 13 20 50 61 64 58 Greatest Support 53 | 20 20 20 36 46 53 Greatest Overweight (x) 6 | . . 4 4 6 1 Average Overweight (x) 1 | . . 2 1 1 . Largest Inventory Capacity 20 | . 10 20 20 20 20 Average Capacity 18 | . 9 19 20 20 20 Most Carried 20 | . 10 11 20 20 20 Average Carried 13 | . 7 10 15 15 18 Final Capacity 20 | 8 10 20 20 20 20 Final Carried 20 | 6 10 11 20 20 12 Class Distribution -------------------- 60% | Scavenger-Mutant 39% | Mutant Dominant Class ---------------- Mutant | -10/Materials Scavenger-Mutant | -10/Mines Mutant | -9/Materials Scavenger-Mutant | -8/Materials Scavenger-Mutant | -8/Garrison Resources | -11 -10 -10 -9 -8 -8 ----------- Run | Yrd Mat Min Mat Mat Gar Matter Collected 877 | 200 129 74 144 109 221 Remotely . | . . . . . . Salvage Created 1341 | . 411 57 220 476 177 Parts 70 | . 16 3 14 19 18 Haulers Intercepted 1 | . . . 1 . . Recyclers Shooed 2 | . 2 . . . . Parts Field Recycled . | . . . . . . Retrieved Matter . | . . . . . . Parts Self-Destructed . | . . . . . . Prevented . | . . . . . . Kills | -11 -10 -10 -9 -8 -8 ------- Run | Yrd Mat Min Mat Mat Gar Combat Hostiles Destroyed 31 | . 7 2 4 9 9 Guns 16 | . 7 . . 1 8 Cannons 10 | . . . 4 5 1 AOE 4 | . . 2 . 2 . Classes Destroyed 7 | . 2 . 4 1 . Hauler 1 | . . . 1 . . Recycler 1 | . 1 . . . . Watcher 2 | . . . 1 1 . Swarmer 9 | . . . 1 . 8 Grunt 19 | . 7 2 2 8 . Sentry 1 | . . . 1 . . Hunter 2 | . . . . 1 1 Best Kill Streak 5 | . 3 5 4 5 3 Combat Bots Only 5 | . 3 5 2 3 3 Max Kills in Single Turn 1 | . 1 1 1 1 1 Gunslinging . | . . . . . . Exploded 1 | . . 1 . 1 . Melee . | . . . . . . Uniques/NPCs Destroyed . | . . . . . . Combat | -11 -10 -10 -9 -8 -8 -------- Run | Yrd Mat Min Mat Mat Gar Hostile Shots Fired 329 | . 62 6 11 94 156 Missed 82 | . 14 2 1 23 42 Damage Taken 3772 | . 650 85 105 1167 1765 Core 791 | . 194 18 6 122 451 Absorbed by Shields 48 | . . . . . 48 Regen/Repaired (Parts) 69 | . . . . 69 . Core Remaining (%) 71 | 100 . 15 98 . . Volleys Fired 131 | . 46 4 7 36 38 Largest 2 | . 2 2 2 2 2 Hottest 150 | . 115 80 150 150 150 Shots Fired 221 | . 77 6 14 58 66 Gun 132 | . 77 3 . 11 41 Cannon 80 | . . . 14 42 24 Launcher 9 | . . 3 . 5 1 Special . | . . . . . . Kinetic 58 | . 29 . . . 29 Thermal 131 | . 48 3 14 42 24 Explosive 9 | . . 3 . 5 1 Electromagnetic 23 | . . . . 11 12 Robot Hit Streak 10 | . 8 9 4 10 10 Robot Miss Streak 3 | . 3 1 2 2 3 Penetration Max . | . . . . . . Secondary Targets . | . . . . . . Shots Hit Robots 148 | . 54 4 8 43 39 Core Hits 65 | . 18 5 6 19 17 Critical Kills . | . . . . . . Critical Parts Destroyed . | . . . . . . Critical Strikes 3 | . 3 . . . . Burn 3 | . 3 . . . . Melee Attacks . | . . . . . . Impact . | . . . . . . Slashing . | . . . . . . Piercing . | . . . . . . Sneak Attacks . | . . . . . . Combat Hostiles . | . . . . . . Follow-up Attacks . | . . . . . . Damage Inflicted 3058 | . 733 165 200 1227 733 Guns 1235 | . 733 13 . 197 292 Cannons 1361 | . . . 200 798 363 Explosions 462 | . . 152 . 232 78 Melee . | . . . . . . Ramming . | . . . . . . Kinetic 436 | . 220 . . . 216 Thermal 1887 | . 513 13 200 798 363 Explosive 462 | . . 152 . 232 78 Electromagnetic 273 | . . . . 197 76 Impact . | . . . . . . Slashing . | . . . . . . Piercing . | . . . . . . Highest Corruption 6 | . . . . 2 6 Average Corruption 2 | . . . . 2 2 Corruption Purged . | . . . . . . Corruption Blocked . | . . . . . . Effects 13 | . . . . 3 10 Message Errors 4 | . . . . 1 3 Matter Fused 3 | . . . . . 3 Heat Flow Errors 2 | . . . . . 2 Energy Discharges 1 | . . . . . 1 Parts Fused 1 | . . . . . 1 Data Loss (minor) 1 | . . . . 1 . Alerts 1 | . . . . 1 . Overload Shots . | . . . . . . Overflow Damage . | . . . . . . Projectiles . | . . . . . . Explosions . | . . . . . . Melee . | . . . . . . Knockbacks . | . . . . . . Impact . | . . . . . . Kinetic . | . . . . . . Secondary . | . . . . . . Self-Inflicted Damage 49 | . . 34 . 12 3 Shots 5 | . . 3 . 1 1 Rammed . | . . . . . . Targets Rammed . | . . . . . . Kicked . | . . . . . . Crushed . | . . . . . . Highest Temperature 683 | . 321 17 123 300 683 Average Temperature 130 | . 136 12 59 88 231 Received Heat Transfer 1308 | . 357 27 42 630 252 Effects 23 | . 3 . . . 20 Shutdowns 3 | . . . . . 3 Energy Bleed 4 | . 1 . . . 3 Interference 5 | . 1 . . . 4 Matter Decay 1 | . . . . . 1 Short Circuit 1 | . . . . . 1 Damage (minor) 3 | . 1 . . . 2 Damage (major) 5 | . . . . . 5 Damage (core) 1 | . . . . . 1 Siege Activations . | . . . . . . Robots Corrupted 1 | . . . . 1 . Combat Hostiles 1 | . . . . 1 . Parts Fried 1 | . . . . 1 . Impact Corruptions . | . . . . . . Robots Melted . | . . . . . . Combat Hostiles . | . . . . . . Parts Melted 1 | . 1 . . . . Heat Transferred 3589 | . 1628 37 296 1110 518 Parts Sabotaged . | . . . . . . Parts Stolen . | . . . . . . Parts Stripped . | . . . . . . Power Chain Reactions . | . . . . . . Alert | -11 -10 -10 -9 -8 -8 ------- Run | Yrd Mat Min Mat Mat Gar Peak Influence 295 | . 190 139 93 224 295 Initial 73 | . . 73 . 39 15 Average 97 | . 82 120 32 96 165 Maximum Alert Level 1 | . . . . 1 1 Low Security (%) 90 | . 100 100 100 97 56 Level 1 9 | . . . . 2 43 Level 2 . | . . . . . . Level 3 . | . . . . . . Level 4 . | . . . . . . Level 5 . | . . . . . . High Security . | . . . . . . Max Security . | . . . . . . Squads Dispatched 6 | . 1 . 2 3 . Investigation 2 | . . . 2 . . Extermination . | . . . . . . Reinforcement 1 | . 1 . . . . Assault . | . . . . . . Garrison 3 | . . . . 3 . Intercept . | . . . . . . Searches Triggered . | . . . . . . Construction Impeded . | . . . . . . Haulers Reinforced . | . . . . . . Active Scanning Responses . | . . . . . . Cargo Convoy Interrupts . | . . . . . . Stealth | -11 -10 -10 -9 -8 -8 --------- Run | Yrd Mat Min Mat Mat Gar Distress Signals 3 | . 2 . . 1 . Communications Jammed . | . . . . . . Distress Signals . | . . . . . . Times Spotted 52 | . 11 2 8 10 21 Peak Tracking Total 9 | . 4 2 5 3 9 Tactical Retreats 1 | . . . . . 1 Traps | -11 -10 -10 -9 -8 -8 ------- Run | Yrd Mat Min Mat Mat Gar Traps Triggered 3 | . . . 1 . 2 Indirectly . | . . . . . . Trap Hack Attempts . | . . . . . . Triggered . | . . . . . . Disarmed . | . . . . . . Reprogrammed . | . . . . . . Reused . | . . . . . . Traps Extracted . | . . . . . . Installed . | . . . . . . Triggered . | . . . . . . Machines | -11 -10 -10 -9 -8 -8 ---------- Run | Yrd Mat Min Mat Mat Gar Machines Disabled 3 | . 1 . . 2 . Max in Single Turn 1 | . 1 . . 1 . Machines Repaired . | . . . . . . Machines Dismantled . | . . . . . . Machines Sabotaged . | . . . . . . Overloaded Fab Kills . | . . . . . . Hacking | -11 -10 -10 -9 -8 -8 --------- Run | Yrd Mat Min Mat Mat Gar Machines Accessed 6 | . . . 2 2 2 Terminals 4 | . . . 2 . 2 Fabricators . | . . . . . . Repair Stations 1 | . . . . 1 . Recycling Units . | . . . . . . Scanalyzers . | . . . . . . Garrison Access 1 | . . . . 1 . Total Hacks 18 | . . . 8 4 6 Successful 6 | . . . 3 3 . Failed 12 | . . . 5 1 6 Catastrophic 5 | . . . 1 . 4 Database Lockouts . | . . . . . . Manual 3 | . . . 3 . . Terminals 14 | . . . 8 . 6 Fabricators . | . . . . . . Repair Stations 2 | . . . . 2 . Recycling Units . | . . . . . . Scanalyzers . | . . . . . . Garrison Access 2 | . . . . 2 . Terminal Hacks 2 | . . . 2 . . Prototype ID Bank 1 | . . . 1 . . Recall Investigation 1 | . . . 1 . . Fabricator Hacks . | . . . . . . Repair Station Hacks 2 | . . . . 2 . Scan Component 1 | . . . . 1 . Repair 1 | . . . . 1 . Recycling Unit Hacks . | . . . . . . Scanalyzer . | . . . . . . Garrison Access Hacks 1 | . . . . 1 . Unlock Access 1 | . . . . 1 . Unauthorized Hacks 1 | . . . 1 . . Terminals 1 | . . . 1 . . Botnet 1 | . . . 1 . . Fabricators . | . . . . . . Repair Stations . | . . . . . . Recycling Units . | . . . . . . Scanalyzers . | . . . . . . Garrison Access . | . . . . . . Data Cores Recovered . | . . . . . . Used . | . . . . . . Hacking Detections 4 | . . . 2 . 2 Full Trace Events 4 | . . . 2 . 2 Feedback Events . | . . . . . . Feedback Blocked . | . . . . . . Robot Schematics Acquired . | . . . . . . Robots Built . | . . . . . . Authchips . | . . . . . . Time . | . . . . . . Total Robot Build Rating . | . . . . . . Part Schematics Acquired . | . . . . . . Parts Built . | . . . . . . Authchips . | . . . . . . Time . | . . . . . . Total Part Build Rating . | . . . . . . Parts Repaired 1 | . . . . 1 . Time 38 | . . . . 38 . Parts Recycled . | . . . . . . Recycled Matter . | . . . . . . Retrieved Matter . | . . . . . . Retrieved Components . | . . . . . . Parts Scanalyzed . | . . . . . . Part Schematics Acquired . | . . . . . . Parts Damaged . | . . . . . . Bothacking | -11 -10 -10 -9 -8 -8 ------------ Run | Yrd Mat Min Mat Mat Gar Used RIF Installer . | . . . . . . Robots Hacked . | . . . . . . Non-combat . | . . . . . . Combat . | . . . . . . Robot Hacks Applied . | . . . . . . Relay Couplers Released . | . . . . . . Fabnet Peak Effective % . | . . . . . . Robots Rewired . | . . . . . . Allies Hacked . | . . . . . . Hacks Repelled . | . . . . . . Allies | -11 -10 -10 -9 -8 -8 -------- Run | Yrd Mat Min Mat Mat Gar Total Allies 3 | . . 3 . . . Largest Group 3 | . . 3 3 . . Highest-Rated Group 40 | . . 40 40 . . Highest-Rated Ally 16 | . . 16 16 . . Total Orders . | . . . . . . Ally Attacks 17 | . . . 17 . . Total Damage 179 | . . . 179 . . Kills 3 | . . . 3 . . Allies Corrupted . | . . . . . . Allies Melted . | . . . . . . Intel | -11 -10 -10 -9 -8 -8 ------- Run | Yrd Mat Min Mat Mat Gar Robot Analysis Total . | . . . . . . Derelict Logs Recovered 1 | . . 1 . . . Drone Launches . | . . . . . . Drone Recoveries . | . . . . . . Exploration | -11 -10 -10 -9 -8 -8 ------------- Run | Yrd Mat Min Mat Mat Gar Turns Passed 2293 | . 324 460 557 500 452 Spaces Moved 911 | 1 109 220 240 162 179 Core . | . . . . . . Treads . | . . . . . . Legs 804 | 1 109 129 238 148 179 Wheels 107 | . . 91 2 14 . Hover . | . . . . . . Flight . | . . . . . . Fastest Speed 120 | 120 120 120 140 155 120 Average Speed 187 | 120 120 194 211 189 186 Slowest Speed 260 | 120 120 260 260 260 190 Overloaded Moves . | . . . . . . Propulsion Burnouts . | . . . . . . Robots Hopped . | . . . . . . Cave-ins Triggered . | . . . . . . Exploration Rate (%) 22 | 3 27 41 26 14 26 Regions Visited 5 Branch Regions 1 Pre-discovered Areas 1 | . . 1 . . . Known Exits Taken 1 | . . . . 1 . Unknown Exits Taken 4 | 1 1 1 1 . . Scrap Searched 2 | . . 2 . . . Spaces Dug . | . . . . . . Terrain Destroyed 34 | . . 13 5 12 4 Melee . | . . . . . . Projectile 13 | . . . 5 8 . AOE 21 | . . 13 . 4 4 Terrain Rammed . | . . . . . . Walls Destroyed . | . . . . . . Machines Disabled . | . . . . . . Actions | -11 -10 -10 -9 -8 -8 --------- Run | Yrd Mat Min Mat Mat Gar Total 1280 | . 226 246 276 294 238 Wait 131 | . 46 14 6 64 1 Move 903 | . 108 219 239 161 176 Hop . | . . . . . . Pick Up 19 | . 6 1 8 4 . Fast Attach 17 | . 2 2 3 9 1 Attach 28 | . 3 1 3 10 11 Detach 14 | . 2 1 4 5 2 Swap 18 | . 6 2 3 5 2 Drop 12 | . 7 2 3 . . Fire 131 | . 46 4 7 36 38 Melee . | . . . . . . Ram . | . . . . . . Kick . | . . . . . . Crush . | . . . . . . Escape Stasis 7 | . . . . . 7 Rewire . | . . . . . . Trap . | . . . . . . Miscellaneous . | . . . . . . Route ------- -11/Scrapyard -10/Materials -10/Mines (discovered 2 exits: *Mat / [*Sub]) -9/Materials -8/Materials -8/Garrison (discovered 1 exit: *Mat) History --------- Turn | Location | Event 1 | -11/Scrapyard | Discovered new exit (range 0) 1 | -11/Scrapyard | Entered Materials 195 | -10/Materials | Discovered new exit (range 14) 256 | -10/Materials | Core integrity fell below 50% 324 | -10/Materials | Lost 3 parts (1n2w) 325 | -10/Materials | Entered Mines 328 | -10/Mines | Core integrity fell below 20% 521 | -10/Mines | Assisted by bots powering up and referring to "LRC-V3" 557 | -10/Mines | Discovered new exit (range 6) 582 | -10/Mines | Build established: Scavenger-Mutant 625 | -10/Mines | Learned location of Recycling (-8) 680 | -10/Mines | Discovered new exit (range 9) 785 | -10/Mines | Entered Materials 785 | -9/Materials | Accompanied by 3 allies 785 | -9/Materials | Evolved 2 slots: Propulsion x1, Utility x1 1087 | -9/Materials | Build established: Mutant 1187 | -9/Materials | Discovered new exit (range 4) 1241 | -9/Materials | Lost 3 allies 1342 | -9/Materials | Entered another Materials area 1342 | -8/Materials | Evolved 2 slots: Propulsion x1, Utility x1 1435 | -8/Materials | Garrison activated, responded to threat 1462 | -8/Materials | Lost 6 parts (3n2u1w) 1536 | -8/Materials | Repaired Nuclear Core 1581 | -8/Materials | Lost 3 parts (2n1u) 1679 | -8/Materials | Build established: Scavenger-Mutant 1840 | -8/Materials | Identified exit to Garrison 1842 | -8/Materials | Entered Garrison 1866 | -8/Garrison | Triggered checkpoint 2016 | -8/Garrison | Triggered checkpoint 2173 | -8/Garrison | Discovered new exit (range 15) 2221 | -8/Garrison | Spotted B-75 Beast 2258 | -8/Garrison | Identified exit to Materials 2260 | -8/Garrison | Attempted to access garrison exit controls, blocked by remote lockdown 2276 | -8/Garrison | Core integrity fell below 50% 2293 | -8/Garrison | Core integrity fell below 20% 2294 | -8/Garrison | Destroyed by L-31 Rogue with Katana Last Messages --------------- Overheating: Energy bleed (-20). Overheating: Matter decay (-45). Grenade Launcher destroyed. Identified Adv. Beam Cannon. Hvy. Particle Cannon destroyed. Power failure, Nuclear Core shutdown. Carbon-fiber Leg broken. Overheating: Short circuit. Overheating: Energy bleed (-11). Broken Carbon-fiber Leg destroyed. Overheating: Adv. Beam Cannon damaged (-79). Overheating: Imp. Signal Interpreter damaged (-6). Overheating: Hcp. Storage Unit damaged (-93). Overheating: Nuclear Core damaged (-1). Nuclear Core destroyed. Overheating: Hcp. Storage Unit damaged (-24). Adv. Beam Cannon destroyed. Imp. Signal Interpreter severed. Overheating: Hcp. Storage Unit damaged (-14). Map ----- +----------------------------------------------------+ | ????????????????????????????????????? | | ????????????????????????????????????? | | ????????????????????????????????????? | | ???????????++???????????????????????? | | ??????????? ^???????????????????????? | | ??????????# ???????????????????????? | | ??????????+ ???????????????????????? | | ??????????# ???????????????????????? | | ??????????# ???????????????????????? | | ??????????# #??????????????????????? | | ??????????# #??????????????????????? | | ??????????# #??????????????????????? | | ??????????# #??????????????????????? | | ??????????# #??????????????????????? | | ??????????# #??????????????????????? | | ??????????# #??????????????????????? | | ??????????# #??#####???????????????? | | ?????????## ####"T"#???????????????? | | ???????###" "#???????????????? | | ???????# " ########???????????????? | | ???????# " #??????????????????????? | | ???????###" #??????????????????????? | | ??????????# #??????????????????????? | | ??????????# #??????????????????????? | | ??????????# #????????#####?????????? | | ??????????# #????????# @#?????????? | | #####++####//########## ll#?????????? | | Y %#?????????? | | BB #?????????? | | BBs #?????????? | | # ################# ##?????????? | | # #???????????????##### ???????????? | | # *#???????????????????# ???????????? | | #=%#???????????????????# ???????????? | | # [#???????????????????# ???????????? | | # ??????????????????? ???????????? | | # ???????????????????##???????????? | | # ##???????????????????????????????? | | # #????????????????????????????????? | | #????????????????????????????????? | | #????????????????????????????????? | | ####????????????????????????????????? | | ????????????????????????????????????? | | ????????????????????????????????????? | | ????????????????????????????????????? | | ????????????????????????????????????? | | ????????????????????????????????????? | | ????????????????????????????????????? | | ????????????????????????????????????? | | ????????????????????????????????????? | +----------------------------------------------------+ Best States ------------- Heat Dissipation 45 Energy Generation 14 Energy Capacity 250 Matter Stores 300 Matter Capacity 300 Sight Range 16 Robot Scan Range 15 Terrain Scan Density 10 Additional Mass Support 6 Evasion (%) 55 Targeting Accuracy 6 Particle Charging 15 Item Schematics ----------------- None Robot Schematics ------------------ None Fabricated ------------ Nothing Alien Tech Used ----------------- None Achievements -------------- None Challenges ------------ None Game ------ Seed TerrabombNodeFrame Manual? 0 Play Time 00:21:34 Cumulative 93.4 hours Start 2024.04.28 @ 10:25:10 End 2024.04.28 @ 10:45:52 Sessions 1 Manual Loads 0 Difficulty Rogue Special Mode None Game No. 184 Rogue 182 Adventurer 2 Explorer 0 Win Type - Total 3 Types 2/0/0/1/0/0/0/0/0 Lore% 54 Gallery% 53 Achievement% 41 Wizard Run 0 Options --------- Layout 2 ASCII 0 Keyboard 1 Movement Numpad Keybinds 1 Fullscreen 2 Font 24/Smallcaps Map View 50x44 Zoom Use 0% Tactical HUD 1 Map Filters NONE Filters NONE Steam 1 RUN: 59d7a231-b74a-4d98-abed-1ce16afd51d7